bitfinex-derivatives/quotes_BTCF0:USTF0_20240829
["timestamp","ask_amount","ask_price","bid_price","bid_amount"]
[1724957896625,0.3539,59188.0,59187.0,0.22996232]
[1724957897528,0.02118821,59188.0,59187.0,0.22996232]
[1724957897718,0.00025338,59193.0,59190.0,0.084452]
[1724957897913,0.00025338,59193.0,59191.0,0.22995632]
[1724957898225,0.00025338,59193.0,59192.0,0.14550632]
[1724957898416,0.00025338,59193.0,59192.0,0.50630632]
[1724957899524,0.01425338,59193.0,59192.0,0.50630632]
[1724957900033,0.02825338,59193.0,59192.0,0.50630632]
[1724957900418,0.3608,59217.0,59192.0,1.552089]
[1724957900618,0.3608,59207.0,59202.0,0.14550632]
[1724957900925,0.3608,59207.0,59200.0,0.084437]
[1724957901122,0.3608,59202.0,59194.0,0.084446]
[1724957901325,0.084454,59189.0,59181.0,0.084464]
[1724957901529,0.3608,59182.0,59180.0,0.084465]
[1724957902022,0.00025338,59191.0,59181.0,0.14525256]
[1724957902223,0.00025338,59191.0,59190.0,0.14525256]
[1724957902522,0.02151581,59191.0,59190.0,0.14525256]
[1724957902726,0.00025338,59191.0,59190.0,0.50605256]
[1724957903516,0.01425338,59191.0,59190.0,0.50705256]
[1724957904123,0.01825338,59191.0,59190.0,0.50805256]
[1724957905728,3.8e-07,59191.0,59190.0,1.19250456]
[1724957906123,3.8e-07,59191.0,59190.0,1.27695656]
[1724957906832,0.3608,59216.0,59208.0,0.14525218]
[1724957907127,0.3608,59214.0,59200.0,0.445238]
[1724957907430,0.3608,59214.0,59200.0,0.3608]
[1724957907630,0.084438,59200.0,59195.0,0.00025338]
[1724957907923,0.6812,59199.0,59195.0,0.00025338]
[1724957908325,0.3608,59197.0,59189.0,0.084453]
[1724957908529,0.3608,59197.0,59189.0,0.22970518]
[1724957908830,0.3608,59197.0,59195.0,0.001]
[1724957909027,0.8676,59197.0,59195.0,0.001]
[1724957909221,0.68364001,59199.0,59196.0,0.084444]
[1724957909426,1.188,59199.0,59195.0,0.001]
[1724957909618,1.188,59199.0,59195.0,0.085445]
[1724957909619,0.3608,59198.0,59195.0,0.085445]
[1724957909821,0.3608,59198.0,59195.0,0.002]
[1724957910024,0.084445,59196.0,59180.0,0.3608]
[1724957910223,0.3608,59191.0,59182.0,0.14525218]
[1724957910433,0.445251,59191.0,59189.0,0.001]
[1724957910625,0.093444,59197.0,59189.0,0.001]
[1724957910826,0.009,59197.0,59193.0,0.084447]
[1724957911026,0.3608,59198.0,59193.0,0.084447]
[1724957911225,0.008,59196.0,59195.0,0.001]
[1724957911626,0.008,59196.0,59195.0,0.085445]
[1724957911820,0.3608,59198.0,59197.0,0.084442]
[1724957912427,0.02116722,59199.0,59198.0,0.084441]
[1724957912631,0.3608,59211.0,59202.0,0.084435]
[1724957912831,0.0211057,59203.0,59202.0,0.59048718]
[1724957913039,0.00025338,59203.0,59202.0,0.59048718]
[1724957914425,0.00325338,59203.0,59202.0,0.59148718]
[1724957917625,0.01725338,59203.0,59202.0,0.59248718]
[1724957918627,0.01725338,59203.0,59202.0,0.447235]
[1724957918831,0.01725338,59203.0,59202.0,0.59248718]
[1724957922133,0.01725338,59203.0,59202.0,0.447235]
[1724957922440,0.17980987,59217.0,59206.0,0.084429]
[1724957922638,0.084413,59218.0,59216.0,0.59046618]
[1724957922839,0.6616,59223.0,59217.0,0.14525218]
[1724957923044,0.00236,59228.0,59227.0,0.084399]
[1724957923236,0.36316,59232.0,59231.0,0.084394]
[1724957923545,0.36316,59232.0,59221.0,0.3608]
[1724957923546,0.084405,59223.0,59213.0,0.3608]
[1724957923843,0.084418,59214.0,59213.0,0.3608]
[1724957924443,0.084418,59214.0,59206.0,0.3628]
[1724957924444,0.084428,59207.0,59206.0,0.3618]
[1724957924831,0.08467538,59212.0,59206.0,0.50605218]
[1724957925048,0.08467538,59212.0,59208.0,0.14525218]
[1724957925232,0.00025338,59212.0,59211.0,0.445222]
[1724957925439,0.02104609,59212.0,59211.0,0.59047418]
[1724957925743,0.00025338,59212.0,59211.0,1.27489618]
[1724957926044,0.00025338,59212.0,59211.0,0.59047418]
[1724957926346,0.29257098,59222.0,59218.0,0.14525218]
[1724957926546,0.31362394,59222.0,59221.0,0.3608]
[1724957927547,0.22921794,59222.0,59221.0,0.3608]
[1724957927850,0.22921794,59222.0,59221.0,0.445208]
[1724957928038,0.23121794,59222.0,59221.0,0.59046018]
[1724957928236,0.23121794,59222.0,59221.0,0.59146018]
[1724957928434,0.22921794,59222.0,59221.0,0.59146018]
[1724957928641,0.23121794,59222.0,59221.0,0.447208]
[1724957929541,0.23121794,59222.0,59221.0,0.59246018]
[1724957931939,0.02305296,59222.0,59221.0,0.59246018]
[1724957932537,0.02305296,59222.0,59221.0,0.95326018]
[1724957933245,0.00025338,59227.0,59221.0,0.86885218]
[1724957933446,0.02116456,59227.0,59226.0,0.59045318]
[1724957933646,0.00025338,59227.0,59226.0,0.59045318]
[1724957934643,0.00025338,59227.0,59226.0,0.67685418]
[1724957935358,0.00025338,59227.0,59226.0,0.59245318]
[1724957937840,0.00025338,59227.0,59226.0,0.59145318]
[1724957938546,3.8e-07,59227.0,59226.0,0.76025518]
[1724957938849,0.11051611,59234.0,59228.0,0.084398]
[1724957939050,0.07810524,59236.0,59233.0,0.3608]
[1724957939354,0.0518117,59240.0,59239.0,0.084382]
[1724957939355,0.07810524,59240.0,59239.0,0.084382]
[1724957939539,0.02113594,59241.0,59240.0,0.084381]
[1724957939744,0.0518117,59253.0,59239.0,0.3608]
[1724957939745,0.084381,59240.0,59239.0,0.3608]
[1724957940149,0.05206508,59245.0,59239.0,0.3608]
[1724957940351,0.00025338,59245.0,59239.0,0.3608]
[1724957940553,0.00025338,59245.0,59239.0,0.446182]
[1724957941245,0.08438,59241.0,59240.0,0.084381]
[1724957941446,0.00025338,59245.0,59240.0,0.084381]
[1724957941753,0.084378,59242.0,59240.0,0.084381]
[1724957941949,0.00025338,59245.0,59241.0,0.084379]
[1724957942149,0.00025338,59245.0,59239.0,0.3628]
[1724957942558,0.00025338,59245.0,59242.0,0.084378]
[1724957942748,0.00025338,59245.0,59239.0,0.3628]
[1724957942950,0.00025338,59245.0,59240.0,0.001]
[1724957943150,0.084378,59242.0,59240.0,0.001]
[1724957943361,0.084397,59229.0,59225.0,0.084402]
[1724957943568,0.3608,59229.0,59218.0,0.3816693]
[1724957943851,0.1362097,59228.0,59224.0,0.084403]
[1724957944051,0.0518117,59228.0,59218.0,0.3816693]
[1724957944451,0.0518117,59228.0,59225.0,0.084401]
[1724957944645,0.0518117,59228.0,59218.0,0.3816693]
[1724957944865,0.1362097,59228.0,59218.0,0.3816693]
[1724957945054,0.0518117,59228.0,59224.0,0.001]
[1724957945557,0.00025338,59229.0,59228.0,0.084398]
[1724957946461,0.02156252,59229.0,59228.0,0.084398]
[1724957947166,0.00025338,59229.0,59228.0,0.085398]
[1724957947354,0.00025338,59229.0,59228.0,0.531596]
[1724957947550,0.00025338,59229.0,59228.0,0.446198]
[1724957947756,0.00025338,59229.0,59228.0,0.002]
[1724957947956,0.08465038,59229.0,59228.0,0.002]
[1724957948151,0.08465038,59229.0,59228.0,0.001]
[1724957948352,0.00025338,59229.0,59228.0,0.085398]
[1724957949160,0.00025338,59229.0,59228.0,0.084398]
[1724957950366,0.02156222,59234.0,59228.0,0.001]
[1724957950566,0.3644,59236.0,59230.0,0.3608]
[1724957950765,0.3644,59236.0,59234.0,0.084389]
[1724957952358,0.448787,59236.0,59234.0,0.084389]
[1724957952671,0.38511404,59236.0,59235.0,0.084388]
[1724957953062,0.02071404,59236.0,59235.0,0.084388]
[1724957953262,0.084385,59237.0,59235.0,0.084388]
[1724957953764,0.590827,59236.0,59235.0,0.001]
[1724957953964,0.084387,59236.0,59235.0,0.001]
[1724957954167,1.190827,59236.0,59235.0,0.001]
[1724957955472,0.084388,59235.0,59234.0,0.001]
[1724957955669,0.084392,59233.0,59229.0,0.00025338]
[1724957955863,0.084392,59232.0,59229.0,0.00025338]
[1724957956064,0.02145217,59237.0,59230.0,0.3608]
[1724957956281,0.084384,59238.0,59235.0,0.084388]
[1724957956570,0.084387,59236.0,59235.0,0.002]
[1724957956867,0.084387,59236.0,59235.0,0.001]
[1724957957271,0.590827,59236.0,59230.0,0.3618]
[1724957957474,0.084387,59236.0,59230.0,0.3618]
[1724957957662,0.084387,59236.0,59234.0,0.084388]
[1724957957868,0.590827,59236.0,59234.0,0.084388]
[1724957958279,0.084394,59231.0,59230.0,0.001]
[1724957958472,0.084391,59233.0,59230.0,0.001]
[1724957958972,0.084391,59233.0,59230.0,0.3608]
[1724957959181,0.36,59238.0,59230.0,0.3608]
[1724957959481,0.084392,59232.0,59230.0,0.3608]
[1724957959873,0.084394,59231.0,59230.0,0.3618]
[1724957960371,0.084394,59231.0,59230.0,0.446195]
[1724957960574,0.084383,59239.0,59238.0,0.084383]
[1724957961775,0.02092554,59240.0,59239.0,0.084382]
[1724957961978,0.084378,59242.0,59239.0,0.084382]
[1724957962475,0.084382,59239.0,59238.0,0.001]
[1724957962670,0.445182,59239.0,59231.0,0.084393]
[1724957962867,0.084389,59235.0,59231.0,0.084393]
[1724957963077,0.084389,59235.0,59229.0,0.00025338]
[1724957963482,0.00025338,59241.0,59240.0,0.084381]
[1724957963978,0.00025338,59241.0,59240.0,0.445181]
[1724957964183,0.00025338,59241.0,59240.0,0.529562]
[1724957964382,0.445155,59259.0,59241.0,0.084379]
[1724957964579,0.445155,59259.0,59254.0,0.3608]
[1724957964784,0.084356,59258.0,59254.0,0.3608]
[1724957965482,0.36,59256.0,59250.0,0.00025317]
[1724957965681,0.3608,59253.0,59240.0,0.3608]
[1724957965883,0.084369,59249.0,59242.0,0.084377]
[1724957966181,0.3608,59253.0,59242.0,0.084377]
[1724957966182,0.084371,59247.0,59242.0,0.084377]
[1724957966375,0.084375,59245.0,59240.0,0.3608]
[1724957966680,0.3785,59246.0,59240.0,0.3608]
[1724957966886,0.084379,59241.0,59240.0,0.3608]
[1724957967379,1.190779,59241.0,59240.0,0.3608]
[1724957967584,0.084379,59241.0,59240.0,0.3608]
[1724957967774,0.3738,59245.0,59240.0,0.3608]
[1724957967976,0.458174,59245.0,59240.0,0.3608]
[1724957968385,0.458174,59245.0,59242.0,0.001]
[1724957969386,0.05180363,59244.0,59241.0,0.084379]
[1724957970182,0.05180363,59244.0,59242.0,0.001]
[1724957970386,0.05180363,59244.0,59242.0,0.002]
[1724957970582,0.590777,59243.0,59242.0,0.002]
[1724957970789,0.63932115,59243.0,59242.0,0.002]
[1724957971080,1.23932115,59243.0,59242.0,0.002]
[1724957971686,1.23932115,59243.0,59242.0,0.001]
[1724957972083,0.084378,59242.0,59241.0,0.002]
[1724957972282,0.63932215,59242.0,59241.0,0.001]
[1724957972483,1.23932215,59242.0,59241.0,0.001]
[1724957972885,0.084384,59238.0,59237.0,0.00025317]
[1724957973076,0.445184,59238.0,59237.0,0.00025317]
[1724957973577,0.445184,59238.0,59220.0,0.3608]
[1724957973578,1.551624,59238.0,59220.0,0.3608]
[1724957973893,0.3608,59228.0,59220.0,0.3608]
[1724957974192,0.084417,59215.0,59207.0,0.445227]
[1724957974390,0.3608,59223.0,59207.0,0.3608]
[1724957974590,0.084426,59208.0,59207.0,0.3608]
[1724957975886,0.084426,59208.0,59207.0,0.3748]
[1724957976086,0.084426,59208.0,59207.0,0.3758]
[1724957976288,0.084426,59208.0,59207.0,0.3628]
[1724957976785,0.084426,59208.0,59207.0,0.3618]
[1724957976986,1.46748,59208.0,59202.0,0.00025317]
[1724957977182,0.084446,59194.0,59193.0,0.3608]
[1724957977386,0.3608,59196.0,59184.0,0.3608]
[1724957977684,0.3967,59202.0,59188.0,0.084455]
[1724957977990,0.3608,59196.0,59184.0,0.3608]
[1724957978181,0.3610534,59196.0,59184.0,0.3610534]
[1724957978492,0.084457,59187.0,59184.0,0.0002534]
[1724957978788,0.3608,59191.0,59184.0,0.0002534]
[1724957978994,0.084457,59187.0,59184.0,0.0002534]
[1724957979190,0.3608,59191.0,59184.0,0.0002534]
[1724957979191,0.084458,59186.0,59184.0,0.0082534]
[1724957979396,0.084458,59186.0,59184.0,0.0112534]
[1724957980191,0.084458,59186.0,59184.0,0.0012534]
[1724957980391,0.084458,59186.0,59184.0,0.0062534]
[1724957982095,0.084458,59186.0,59178.0,0.3608]
[1724957982096,0.079461,59184.0,59178.0,0.3608]
[1724957982289,0.477954,59189.0,59178.0,0.3608]
[1724957982483,0.3608,59186.0,59171.0,0.445279]
[1724957982692,0.3935,59189.0,59176.0,0.445271]
[1724957982693,0.084457,59187.0,59176.0,0.445271]
[1724957982992,0.084457,59187.0,59176.0,0.3610534]
[1724957983384,0.02596664,59189.0,59183.0,0.3608]
[1724957983591,0.3693,59190.0,59184.0,0.001]
[1724957984087,0.39627873,59190.0,59184.0,0.001]
[1724957984797,0.001,59186.0,59185.0,0.084459]
[1724957985287,0.3608,59198.0,59195.0,0.084445]
[1724957986182,0.02673399,59196.0,59195.0,0.084445]
[1724957986591,0.03573399,59196.0,59195.0,0.085445]
[1724957988490,0.03573399,59196.0,59195.0,0.086445]
[1724957994096,0.03573399,59196.0,59195.0,0.002]
[1724957994097,0.12017799,59196.0,59195.0,0.002]
[1724957994492,0.03573399,59196.0,59195.0,0.002]
[1724957995197,0.03573399,59196.0,59195.0,0.086445]
[1724958000202,9.9e-07,59196.0,59195.0,0.54089]
[1724958000402,0.7308,59224.0,59195.0,1.553245]
[1724958000403,0.3608,59224.0,59195.0,1.553245]
[1724958000607,0.3608,59207.0,59195.0,0.002]
[1724958001104,0.3833,59206.0,59195.0,0.002]
[1724958001297,0.3833,59206.0,59195.0,0.0022534]
[1724958001298,0.3835534,59206.0,59195.0,0.0022534]
[1724958001494,0.3835534,59206.0,59198.0,0.3608]
[1724958001695,0.084435,59202.0,59198.0,0.3608]
[1724958001899,0.02716679,59206.0,59198.0,0.3583]
[1724958002207,0.02716679,59206.0,59205.0,0.084431]
[1724958002395,0.084401,59226.0,59203.0,0.3608]
[1724958002599,0.00236,59232.0,59225.0,0.3608]
[1724958002801,0.3608,59246.0,59231.0,0.445194]
[1724958003109,0.084387,59236.0,59231.0,0.3608]
[1724958003297,0.3608,59237.0,59231.0,0.3608]
[1724958003799,0.084397,59229.0,59228.0,0.0002534]
[1724958004001,0.3608,59232.0,59228.0,0.0002534]
[1724958004205,0.08439,59234.0,59228.0,0.0002534]
[1724958004396,0.7645,59236.0,59230.0,0.3608]
[1724958004397,0.18272,59235.0,59230.0,0.3608]
[1724958004601,0.02592219,59236.0,59232.0,0.084392]
[1724958004901,0.0002534,59239.0,59232.0,0.084392]
[1724958005105,0.3585534,59241.0,59233.0,0.08439]
[1724958005408,0.38427537,59241.0,59231.0,0.36]
[1724958005602,0.38427537,59241.0,59238.0,0.084383]
[1724958006107,0.0002534,59245.0,59244.0,0.084375]
[1724958006408,0.0002534,59245.0,59244.0,0.805175]
[1724958006905,0.0002534,59245.0,59244.0,1.911535]
[1724958007209,0.05179877,59259.0,59249.0,0.084368]
[1724958007508,0.05179877,59261.0,59254.0,0.3608]
[1724958007707,0.3608,59256.0,59244.0,0.3608]
[1724958007906,0.08437,59248.0,59244.0,0.3608]
[1724958008609,0.41260129,59250.0,59240.0,0.00025318]
[1724958008799,0.084375,59245.0,59240.0,0.00025318]
[1724958009106,0.05180129,59249.0,59244.0,0.001]
[1724958009294,0.07832104,59250.0,59247.0,0.084371]
[1724958009499,0.00025318,59252.0,59247.0,0.084371]
[1724958009695,0.02598573,59252.0,59245.0,0.3608]
[1724958009895,0.00025318,59252.0,59250.0,0.3608]
[1724958010507,0.00025318,59252.0,59240.0,0.00025318]
[1724958010508,1.22716,59251.0,59224.0,0.00088]
[1724958010700,0.3608,59225.0,59211.0,0.3608]
[1724958010906,0.7208,59230.0,59217.0,0.084413]
[1724958010907,0.41260129,59224.0,59217.0,0.084413]
[1724958011214,0.05181685,59223.0,59218.0,0.084412]
[1724958011398,0.05181685,59223.0,59220.0,0.7216]
[1724958011716,0.00025318,59231.0,59221.0,0.7869]
[1724958011914,0.00025318,59231.0,59230.0,0.3608]
[1724958012210,0.00025318,59231.0,59230.0,0.9608]
[1724958012404,0.00025318,59231.0,59230.0,1.46728]
[1724958012902,0.06053075,59250.0,59230.0,2.18808]
[1724958013110,0.084367,59250.0,59243.0,0.3608]
[1724958013303,0.084367,59250.0,59242.0,0.3608]
[1724958013499,0.084367,59250.0,59235.0,0.3608]
[1724958013700,0.02618947,59250.0,59248.0,0.084369]
[1724958013911,0.3608,59252.0,59248.0,0.084369]
[1724958014118,0.3608,59252.0,59243.0,0.084376]
[1724958014414,0.3608,59252.0,59237.0,0.00025318]
[1724958014415,0.084384,59238.0,59237.0,0.00025318]
[1724958014605,0.084401,59226.0,59224.0,0.3608]
[1724958014806,0.18252,59241.0,59212.0,0.3608]
[1724958014807,0.3608,59225.0,59212.0,0.3608]
[1724958015008,0.3608,59231.0,59218.0,0.3608]
[1724958015212,0.084395,59230.0,59219.0,0.08441]
[1724958015411,0.084395,59230.0,59220.0,0.084409]
[1724958015617,0.084395,59230.0,59212.0,0.3608]
[1724958015618,0.445206,59223.0,59219.0,0.00025318]
[1724958015915,0.3608,59223.0,59221.0,0.084407]
[1724958016106,0.38734536,59231.0,59219.0,0.00025318]
[1724958016302,0.36105318,59231.0,59219.0,0.00025318]
[1724958016615,0.38759293,59231.0,59219.0,0.00025318]
[1724958017013,1e-08,59231.0,59230.0,0.445195]
[1724958017205,1e-08,59231.0,59230.0,0.613985]
[1724958017406,0.3608,59276.0,59247.0,0.08437]
[1724958017614,0.3608,59276.0,59266.0,0.3608]
[1724958017813,0.3608,59276.0,59259.0,0.3608]
[1724958017814,0.38713551,59276.0,59259.0,0.3608]
[1724958018009,0.38713551,59276.0,59268.0,0.08434]
[1724958018211,0.47146551,59276.0,59268.0,0.08434]
[1724958018911,0.47146551,59276.0,59266.0,0.00025318]
[1724958018912,0.3608,59271.0,59266.0,0.00025318]
[1724958019116,0.3608,59271.0,59247.0,0.3618]
[1724958019117,0.36,59268.0,59247.0,0.3618]
[1724958019305,0.3608,59256.0,59247.0,0.3608]
[1724958019512,0.3608,59256.0,59250.0,0.084366]
[1724958019705,0.3608,59256.0,59254.0,0.08436]
[1724958020222,0.02572447,59266.0,59254.0,0.08436]
[1724958020223,0.00025318,59261.0,59260.0,0.084352]
[1724958020405,0.00025318,59261.0,59260.0,0.445152]
[1724958020607,0.00025318,59261.0,59255.0,0.084359]
[1724958020917,0.00025318,59261.0,59249.0,0.00025318]
[1724958020918,0.00025318,59261.0,59252.0,0.3608]
[1724958021121,0.00025318,59261.0,59259.0,0.3608]
[1724958021612,0.00025318,59261.0,59260.0,0.50724]
[1724958021813,0.00025318,59261.0,59260.0,0.001]
[1724958022003,0.00025318,59261.0,59260.0,0.50624]
[1724958022202,0.00025318,59261.0,59260.0,1.10624]
[1724958022403,0.00025318,59261.0,59259.0,0.445152]
[1724958022705,0.00025318,59261.0,59257.0,0.084356]
[1724958022910,0.00025318,59261.0,59257.0,0.3608]
[1724958023211,0.00025318,59261.0,59259.0,0.084353]
[1724958023818,0.00025318,59261.0,59260.0,0.001]
[1724958025017,0.00025318,59261.0,59260.0,0.002]
[1724958025209,0.00025318,59261.0,59260.0,0.086352]
[1724958025812,1.10649318,59261.0,59251.0,0.3608]
[1724958026017,1.10649318,59261.0,59249.0,0.00025318]
[1724958026018,0.3608,59252.0,59249.0,0.00025318]
[1724958026208,0.3608,59252.0,59235.0,0.3608]
[1724958026209,0.084375,59244.0,59235.0,0.3608]
[1724958026408,0.7697,59243.0,59235.0,0.3608]
[1724958026624,0.7697,59243.0,59222.0,0.3608]
[1724958026625,0.3608,59239.0,59222.0,0.3608]
[1724958026806,0.3608,59231.0,59222.0,0.3608]
[1724958027002,0.3608,59223.0,59216.0,0.084414]
[1724958027203,0.3608,59221.0,59216.0,0.084414]
[1724958027413,0.00025318,59225.0,59216.0,0.084414]
[1724958027617,0.00025318,59225.0,59217.0,0.3608]
[1724958027817,0.00025318,59225.0,59222.0,0.084406]
[1724958028019,0.00025318,59225.0,59217.0,0.3608]
[1724958028211,0.00025318,59225.0,59218.0,0.084412]
[1724958028813,0.00025318,59225.0,59220.0,0.084409]
[1724958029007,0.00025318,59225.0,59221.0,0.084408]
[1724958029519,0.00025318,59225.0,59214.0,0.00025318]
[1724958029520,0.084411,59219.0,59214.0,0.00025318]
[1724958029820,0.00192001,59224.0,59221.0,0.084407]
[1724958030014,0.00217319,59225.0,59221.0,0.084407]
[1724958030317,0.3608,59223.0,59215.0,0.084416]
[1724958030708,0.3608,59223.0,59214.0,1e-08]
[1724958030709,0.3608,59216.0,59214.0,1e-08]
[1724958030913,0.084425,59209.0,59196.0,0.3608]
[1724958031219,0.084425,59209.0,59190.0,0.44501909]
[1724958031220,0.084441,59198.0,59188.0,0.05041591]
[1724958031416,0.3608,59190.0,59187.0,0.05041591]
[1724958031722,0.3608,59190.0,59187.0,0.084456]
[1724958031920,0.02238315,59198.0,59187.0,0.3608]
[1724958032220,0.3608,59207.0,59205.0,0.08443]
[1724958032521,0.3608,59219.0,59203.0,0.3608]
[1724958032815,0.0002534,59212.0,59210.0,0.084422]
[1724958033515,1e-08,59212.0,59210.0,0.084422]
[1724958033915,1e-08,59212.0,59210.0,0.445222]
[1724958034110,0.3887,59223.0,59222.0,0.084406]
[1724958034715,0.084411,59219.0,59216.0,0.3608]
[1724958034916,0.014,59212.0,59211.0,0.084422]
[1724958035220,0.014,59212.0,59210.0,0.3618]
[1724958035430,0.90618,59211.0,59185.0,0.05041591]
[1724958035607,0.90618,59211.0,59181.0,0.3608]
[1724958035608,0.3608,59190.0,59181.0,0.3608]
[1724958035810,0.3929,59189.0,59181.0,0.3608]
[1724958036113,0.7908,59196.0,59190.0,0.084452]
[1724958036114,0.3608,59196.0,59190.0,0.084452]
[1724958036308,0.3608,59196.0,59181.0,0.3608]
[1724958036309,0.3608,59191.0,59181.0,0.3608]
[1724958036621,0.0002534,59192.0,59187.0,0.3608]
[1724958036817,0.0002534,59192.0,59181.0,0.3608]
[1724958037120,0.3610534,59192.0,59181.0,0.3608]
[1724958037318,0.3608,59186.0,59180.0,0.0002534]
[1724958037514,0.3608,59181.0,59180.0,0.0002534]
[1724958038017,0.942185,59181.0,59169.0,0.445282]
[1724958038220,0.435265,59181.0,59169.0,0.445282]
[1724958038422,0.3608,59176.0,59169.0,0.445282]
[1724958038821,0.3608,59176.0,59170.0,0.08448]
[1724958039010,0.0002534,59178.0,59176.0,0.084472]
[1724958039325,0.022022,59192.0,59176.0,0.084472]
[1724958039326,0.44522,59213.0,59176.0,0.7908]
[1724958039619,0.3608,59213.0,59204.0,0.3608]
[1724958039814,0.41665983,59215.0,59209.0,0.084425]
[1724958040009,0.41665983,59215.0,59204.0,0.3608]
[1724958040209,0.3953534,59215.0,59209.0,0.084424]
[1724958040408,0.084431,59206.0,59204.0,0.0002534]
[1724958040815,0.3608,59207.0,59205.0,0.08443]
[1724958041213,0.3953534,59215.0,59204.0,0.0002534]
[1724958041214,0.0002534,59215.0,59204.0,0.0002534]
[1724958041414,0.0002534,59215.0,59214.0,0.445218]
[1724958042024,0.0002534,59215.0,59214.0,0.3608]
[1724958042520,0.0132534,59215.0,59214.0,0.3608]
[1724958042919,0.0002534,59215.0,59213.0,0.084419]
[1724958043116,0.0002534,59215.0,59207.0,0.084428]
[1724958043317,0.0002534,59215.0,59206.0,0.3608]
[1724958043720,0.3608,59213.0,59206.0,0.3608]
[1724958043929,0.3608,59207.0,59204.0,0.0002534]
[1724958044126,0.08443,59206.0,59204.0,1e-08]
[1724958044419,0.3608,59208.0,59204.0,1e-08]
[1724958044725,0.084454,59189.0,59180.0,0.084466]
[1724958044921,0.3608,59188.0,59183.0,0.084461]
[1724958045317,0.3608,59188.0,59177.0,0.3608]
[1724958045318,0.3608,59188.0,59179.0,0.084467]
[1724958045518,0.3608,59188.0,59177.0,0.3608]
[1724958045715,0.3608,59182.0,59177.0,0.3610534]
[1724958046111,0.3610534,59188.0,59177.0,0.3610534]
[1724958046424,0.3608,59182.0,59177.0,0.0002534]
[1724958046722,0.084467,59180.0,59177.0,0.0002534]
[1724958046923,0.3608,59182.0,59177.0,0.0002534]
[1724958046924,0.3608,59178.0,59177.0,0.0002534]
[1724958047121,0.3608,59178.0,59160.0,0.084495]
[1724958047122,0.084478,59172.0,59160.0,0.084495]
[1724958047316,0.3608,59178.0,59153.0,0.3608]
[1724958047317,0.3608,59165.0,59153.0,0.3608]
[1724958047514,0.3608,59165.0,59141.0,0.43]
[1724958047515,0.806088,59165.0,59154.0,0.084502]
[1724958047721,0.3608,59165.0,59155.0,0.084501]
[1724958048018,0.3608,59159.0,59152.0,0.3608]
[1724958048327,0.3608,59159.0,59152.0,0.445306]
[1724958048624,0.08449,59164.0,59153.0,0.084505]
[1724958048819,0.3608,59159.0,59154.0,0.014]
[1724958049019,0.3488,59159.0,59146.0,0.3608]
[1724958049221,0.3608,59154.0,59137.0,0.36172]
[1724958049521,0.0002534,59151.0,59137.0,0.3608]
[1724958049717,0.0002534,59151.0,59144.0,0.084517]
[1724958049920,0.3498,59148.0,59137.0,0.445327]
[1724958050117,0.3608,59148.0,59137.0,0.445327]
[1724958050326,0.3608,59143.0,59134.0,0.3608]
[1724958050526,0.3608,59143.0,59131.0,0.3608]
[1724958050718,0.3608,59143.0,59136.0,0.084529]
[1724958050917,0.3608,59143.0,59131.0,0.3608]
[1724958051320,0.3608,59143.0,59137.0,0.084527]
[1724958051520,0.3478,59143.0,59137.0,0.084527]
[1724958052027,0.3478,59143.0,59133.0,0.084533]
[1724958052525,0.3478,59143.0,59134.0,0.084532]
[1724958052526,0.3488,59143.0,59134.0,0.084532]
[1724958052832,0.3498,59143.0,59131.0,0.3748]
[1724958053021,0.3498,59143.0,59136.0,0.084529]
[1724958053323,0.3498,59143.0,59137.0,0.084527]
[1724958053523,0.3498,59143.0,59131.0,0.3748]
[1724958053728,0.3498,59143.0,59137.0,0.084527]
[1724958053920,0.3498,59143.0,59131.0,0.3748]
[1724958053921,0.3498,59143.0,59138.0,0.084526]
[1724958054124,0.3498,59143.0,59131.0,0.3748]
[1724958054325,0.3498,59143.0,59141.0,0.084521]
[1724958054625,0.001,59143.0,59142.0,0.3608]
[1724958054823,0.002,59143.0,59142.0,0.3608]
[1724958055527,0.002,59143.0,59142.0,0.445321]
[1724958056327,0.002,59143.0,59142.0,0.084521]
[1724958057822,0.002,59143.0,59136.0,0.3608]
[1724958058327,0.002,59143.0,59142.0,0.3608]
[1724958058529,0.002,59143.0,59142.0,0.445321]
[1724958058728,0.002,59143.0,59142.0,0.084521]
[1724958058921,0.002,59143.0,59136.0,0.3608]
[1724958058922,0.002,59143.0,59138.0,0.084525]
[1724958059227,0.002,59143.0,59136.0,0.3608]
[1724958059228,0.002,59143.0,59139.0,0.084525]
[1724958059633,0.002,59143.0,59136.0,0.3608]
[1724958059826,0.002,59143.0,59142.0,0.084521]
[1724958060126,0.002,59143.0,59142.0,0.445321]
[1724958060326,0.02188531,59148.0,59147.0,0.084514]
[1724958060528,0.3610534,59151.0,59150.0,0.084509]
[1724958060731,0.001,59143.0,59142.0,0.3608]
[1724958060927,0.001,59143.0,59142.0,0.445321]
[1724958061127,0.002,59143.0,59142.0,0.445321]
[1724958061524,0.38303684,59151.0,59142.0,0.3608]
[1724958061525,0.001,59148.0,59142.0,0.3608]
[1724958061723,0.001,59148.0,59147.0,0.084514]
[1724958062030,0.001,59148.0,59147.0,0.445314]
[1724958062331,0.0002534,59151.0,59150.0,0.084509]
[1724958062747,0.3608,59162.0,59150.0,1.468]
[1724958063032,0.00192001,59173.0,59172.0,0.084478]
[1724958063226,0.084459,59185.0,59179.0,0.084468]
[1724958063428,0.084461,59184.0,59178.0,0.3608]
[1724958064836,0.084461,59184.0,59175.0,0.00025361]
[1724958064837,0.445262,59183.0,59175.0,0.00025361]
[1724958065225,0.445262,59183.0,59175.0,0.08472661]
[1724958065427,0.3608,59176.0,59175.0,0.00025361]
[1724958065624,0.084479,59171.0,59160.0,0.05041591]
[1724958065829,0.7216,59164.0,59151.0,0.05041591]
[1724958066034,0.3608,59164.0,59149.0,0.41121591]
[1724958066332,0.3608,59164.0,59149.0,0.3608]